[Event "1000GM Schev-G4 May 2024"]
[Site "Sunnyvale"]
[Date "2024.05.12"]
[Round "4.5"]
[White "Pullela, Sricharan"]
[Black "Ramirez, Carlos"]
[Result "1/2-1/2"]
[ECO "D27"]
[WhiteElo "2125"]
[BlackElo "2163"]
[Annotator "ChessBase"]
[PlyCount "138"]
[EventDate "2024.05.10"]
[EventType "schev"]
[EventCountry "USA"]
[SourceTitle "playchess.com"]
[Source "ChessBase"]
[SourceQuality "1"]
[TimeControl "5400+30"]

1. d4 {[%emt 0:07:48]} d5 {[%emt 0:00:18]} 2. c4 {[%emt 0:00:20]} dxc4 {[%emt 0:00:09]} 3. e3 {[%emt 0:00:05]} Nf6 {[%emt 0:00:07]} 4. Bxc4 {[%emt 0:00:13]} e6 {[%emt 0:00:09]} 5. Nf3 {[%emt 0:00:05]} c5 {[%emt 0:00:15]} 6. O-O {[%emt 0:00:21]} a6 {[%emt 0:00:57]} 7. dxc5 {[%emt 0:01:07]} Bxc5 {[%emt 0:04:13]} 8. a3 {[%emt 0:01:28]} b5 {[%emt 0:03:51]} 9. Be2 {[%emt 0:00:19]} Bb7 {[%emt 0:01:54]} 10. b4 {[%emt 0:00:41]} Be7 {[%emt 0:00:09]} 11. Bb2 {[%emt 0:00:13]} O-O {[%emt 0:02:00]} 12. Nbd2 {[%emt 0:00:48]} Nbd7 {[%emt 0:00:18]} 13. Nb3 {[%emt 0:00:23]} Rc8 {[%emt 0:03:16]} 14. Rc1 {[%emt 0:07:19]} Bd5 {[%emt 0:07:04]} 15. Rxc8 {[%emt 0:11:00]} Qxc8 {[%emt 0:00:06]} 16. Bd4 {[%emt 0:00:32]} Qa8 {[%emt 0:02:22]} 17. Qb1 {[%emt 0:02:38]} e5 {[%emt 0:16:57]} 18. Ba1 {[%emt 0:01:17]} Rc8 {[%emt 0:00:45]} 19. Nbd2 {[%emt 0:03:32]} Ne4 {[%emt 0:09:13]} 20. Nxe4 {[%emt 0:01:03]} Bxe4 {[%emt 0:00:09]} 21. Bd3 {[%emt 0:01:01]} Bxf3 {[%emt 0:06:49]} 22. gxf3 {[%emt 0:00:46]} Qxf3 {[%emt 0:09:57]} 23. Bxh7+ {[%emt 0:00:53]} Kf8 {[%emt 0:10:56]} 24. Qe4 {[%emt 0:09:37]} Qxe4 {[%emt 0:01:05]} 25. Bxe4 {[%emt 0:00:06]} Rc7 {[%emt 0:00:06]} 26. Rd1 {[%emt 0:00:50]} f6 {[%emt 0:00:54]} 27. Kf1 {[%emt 0:06:30]} Nb6 {[%emt 0:00:17]} 28. Ke2 {[%emt 0:04:17]} Kf7 {[%emt 0:01:39]} 29. f4 {[%emt 0:03:16]} exf4 {[%emt 0:00:41]} 30. exf4 {[%emt 0:00:03]} Nc4 {[%emt 0:05:35]} 31. Rd3 {[%emt 0:02:04]} Bd6 {[%emt 0:01:13]} 32. Kf3 {[%emt 0:03:44]} Ke7 {[%emt 0:04:31]} 33. h4 {[%emt 0:00:25]} a5 {[%emt 0:04:10]} 34. Bc3 {[%emt 0:06:10]} axb4 {[%emt 0:02:07]} 35. axb4 {[%emt 0:00:49]} Nb6 {[%emt 0:00:55]} 36. Bd2 {[%emt 0:01:23]} Nc4 {[%emt 0:01:07]} 37. Be1 {[%emt 0:01:34]} Nb6 {[%emt 0:00:44]} 38. Re3 {[%emt 0:03:29]} Kd7 {[%emt 0:01:01]} 39. Bf5+ {[%emt 0:02:44]} Kc6 {[%emt 0:00:48]} 40. Bg6 {[%emt 0:00:23]} Nc4 {[%emt 0:00:23]} 41. Re8 {[%emt 0:00:58]} Ra7 {[%emt 0:01:10]} 42. Rc8+ {[%emt 0:02:25]} Kd7 {[%emt 0:00:19]} 43. Rg8 {[%emt 0:01:03]} Ke6 {[%emt 0:00:11]} 44. Ke4 {[%emt 0:00:47]} Ra3 {[%emt 0:00:47]} 45. f5+ {[%emt 0:01:44]} Kd7 {[%emt 0:00:40]} 46. Rxg7+ {[%emt 0:00:10]} Be7 {[%emt 0:00:15]} 47. Kd4 {[%emt 0:01:20]} Ne5 {[%emt 0:00:45]} 48. Kd5 {[%emt 0:01:20]} Rd3+ {[%emt 0:00:15]} 49. Ke4 {[%emt 0:00:05]} Rb3 {[%emt 0:00:45]} 50. h5 {[%emt 0:00:57]} Kd6 {[%emt 0:00:33]} 51. h6 {[%emt 0:00:28]} Bf8 {[%emt 0:00:13]} 52. Bd2 {[%emt 0:01:09]} Rh3 {[%emt 0:00:56]} 53. Bf4 {[%emt 0:01:04]} Rh4 {[%emt 0:00:08]} 54. Rh7 {[%emt 0:01:13]} Kc6 {[%emt 0:00:16]} 55. Rh8 {[%emt 0:03:15]} Bd6 {[%emt 0:00:19]} 56. Rg8 {[%emt 0:04:33]} Nc4 {[%emt 0:01:48]} 57. h7 {[%emt 0:01:06]} Rxf4+ {[%emt 0:00:00]} 58. Kd3 {[%emt 0:00:06]} Rf3+ {[%emt 0:00:00]} 59. Ke2 {[%emt 0:00:53]} Re3+ {[%emt 0:00:00]} 60. Kf2 {[%emt 0:00:57]} Rh3 {[%emt 0:00:02]} 61. h8=Q {[%emt 0:01:29]} Rxh8 {[%emt 0:00:06]} 62. Rxh8 {[%emt 0:00:07]} Bxb4 {[%emt 0:00:08]} 63. Be8+ {[%emt 0:00:19]} Kb6 {[%emt 0:00:09]} 64. Bd7 {[%emt 0:00:13]} Bc5+ {[%emt 0:00:51]} 65. Ke2 {[%emt 0:00:17]} b4 {[%emt 0:01:05]} 66. Be6 {[%emt 0:00:09]} Nd6 {[%emt 0:00:18]} 67. Kd3 {[%emt 0:00:55]} Nb5 {[%emt 0:01:54]} 68. Rh6 {[%emt 0:01:17]} Bd4 {[%emt 0:00:23]} 69. Bd7 {[%emt 0:02:13]} Bc3 {[%emt 0:00:04]} 1/2-1/2

[Event "1000GM Schev-G4 May 2024"]
[Site "Sunnyvale"]
[Date "2024.05.13"]
[Round "5.1"]
[White "Rivera, Ingris"]
[Black "Wu, Jayden"]
[Result "1-0"]
[ECO "D58"]
[WhiteElo "2172"]
[BlackElo "1953"]
[Annotator "ChessBase"]
[PlyCount "95"]
[EventDate "2024.05.10"]
[EventType "schev"]
[EventCountry "USA"]
[SourceTitle "playchess.com"]
[Source "ChessBase"]
[SourceQuality "1"]
[TimeControl "5400+30"]

1. d4 {[%emt 0:02:39]} Nf6 {[%emt 0:00:07]} 2. c4 {[%emt 0:00:11]} e6 {[%emt 0:00:05]} 3. a3 {[%emt 0:00:11]} d5 {[%emt 0:00:13]} 4. Nc3 {[%emt 0:00:14]} Be7 {[%emt 0:00:30]} 5. Nf3 {[%emt 0:00:24]} O-O {[%emt 0:00:42]} 6. Bg5 {[%emt 0:00:13]} Nbd7 {[%emt 0:01:23]} 7. e3 {[%emt 0:00:07]} h6 {[%emt 0:00:47]} 8. Bh4 {[%emt 0:00:15]} a6 {[%emt 0:00:22]} 9. Rc1 {[%emt 0:00:52]} dxc4 {[%emt 0:07:37]} 10. Bxc4 {[%emt 0:00:13]} c5 {[%emt 0:00:10]} 11. O-O {[%emt 0:01:15]} b5 {[%emt 0:00:30]} 12. Ba2 {[%emt 0:00:22]} Bb7 {[%emt 0:00:48]} 13. Qe2 {[%emt 0:06:49]} Qb6 {[%emt 0:03:21]} 14. dxc5 {[%emt 0:01:11]} Nxc5 {[%emt 0:01:48]} 15. Nd4 {[%emt 0:00:41]} Rfe8 {[%emt 0:01:42]} 16. f3 {[%emt 0:01:06]} Ncd7 {[%emt 0:02:59]} 17. Bf2 {[%emt 0:01:27]} b4 {[%emt 0:03:44]} 18. axb4 {[%emt 0:01:42]} Bxb4 {[%emt 0:00:30]} 19. e4 {[%emt 0:01:42]} Qa5 {[%emt 0:03:19]} 20. Bc4 {[%emt 0:05:44]} Bc5 {[%emt 0:08:05]} 21. Ra1 {[%emt 0:01:26]} Qb4 {[%emt 0:02:30]} 22. Rfd1 {[%emt 0:03:20]} e5 {[%emt 0:12:38]} 23. Nf5 {[%emt 0:01:49]} Bxf2+ {[%emt 0:03:39]} 24. Kxf2 {[%emt 0:00:21]} a5 {[%emt 0:03:58]} 25. Nd6 {[%emt 0:08:08]} Rf8 {[%emt 0:01:29]} 26. Nxb7 {[%emt 0:07:47]} Qxb7 {[%emt 0:00:12]} 27. Kf1 {[%emt 0:04:25]} Qb6 {[%emt 0:02:27]} 28. Nb5 {[%emt 0:01:14]} Rac8 {[%emt 0:01:18]} 29. b3 {[%emt 0:00:56]} Nc5 {[%emt 0:38:07]} 30. Rd6 {[%emt 0:08:51]} Qb8 {[%emt 0:00:00]} 31. Qe3 {[%emt 0:03:47]} a4 {[%emt 0:00:00]} 32. Rxf6 {[%emt 0:03:26]} Nxb3 {[%emt 0:00:00]} 33. Rb6 {[%emt 0:02:26]} Rxc4 {[%emt 0:00:00]} 34. Rxb8 {[%emt 0:00:52]} Rxb8 {[%emt 0:00:00]} 35. Na3 {[%emt 0:05:03]} Rd4 {[%emt 0:00:00]} 36. Ra2 {[%emt 0:01:39]} Nc5 {[%emt 0:00:00]} 37. Qc3 {[%emt 0:05:29]} Nd3 {[%emt 0:00:00]} 38. Ra1 {[%emt 0:02:19]} Rb3 {[%emt 0:00:00]} 39. Qc8+ {[%emt 0:00:14]} Kh7 {[%emt 0:00:00]} 40. Nc2 {[%emt 0:01:38]} Rd6 {[%emt 0:00:00]} 41. Ne3 {[%emt 0:01:22]} a3 {[%emt 0:00:00]} 42. Nc4 {[%emt 0:04:08]} Rg6 {[%emt 0:00:00]} 43. Nxa3 {[%emt 0:00:38]} Rb2 {[%emt 0:00:00]} 44. Nc2 {[%emt 0:00:12]} Nf4 {[%emt 0:00:00]} 45. g3 {[%emt 0:00:44]} Ne6 {[%emt 0:00:00]} 46. Qc3 {[%emt 0:00:35]} Rb5 {[%emt 0:00:00]} 47. Ra5 {[%emt 0:01:07]} Rxa5 {[%emt 0:00:00]} 48. Qxa5 {[%emt 0:00:05]} 1-0

[Event "1000GM Schev-G4 May 2024"]
[Site "Sunnyvale"]
[Date "2024.05.13"]
[Round "5.3"]
[White "Champsi, Imran"]
[Black "Cremisi, Daniel"]
[Result "0-1"]
[ECO "C15"]
[WhiteElo "2029"]
[BlackElo "2171"]
[Annotator "ChessBase"]
[PlyCount "126"]
[EventDate "2024.05.10"]
[EventType "schev"]
[EventCountry "USA"]
[SourceTitle "playchess.com"]
[Source "ChessBase"]
[SourceQuality "1"]
[TimeControl "5400+30"]

1. e4 {[%emt 0:01:08]} e6 {[%emt 0:00:01]} 2. d4 {[%emt 0:00:03]} d5 {[%emt 0:00:03]} 3. Nc3 {[%emt 0:00:03]} Bb4 {[%emt 0:00:08]} 4. Qd3 {[%emt 0:00:03]} dxe4 {[%emt 0:01:28]} 5. Qxe4 {[%emt 0:00:03]} Nf6 {[%emt 0:00:15]} 6. Qh4 {[%emt 0:00:02]} b6 {[%emt 0:03:13]} 7. Nge2 {[%emt 0:06:11]} Bb7 {[%emt 0:01:12]} 8. Qg3 {[%emt 0:13:52]} O-O {[%emt 0:01:52]} 9. Bh6 {[%emt 0:02:01]} Ne8 {[%emt 0:00:34]} 10. O-O-O {[%emt 0:00:49]} Bd6 {[%emt 0:02:38]} 11. Bf4 {[%emt 0:00:35]} Nf6 {[%emt 0:01:54]} 12. Qe3 {[%emt 0:08:39]} Nc6 {[%emt 0:02:21]} 13. f3 {[%emt 0:03:26]} Re8 {[%emt 0:03:25]} 14. Ng3 {[%emt 0:06:21]} Nb4 {[%emt 0:01:20]} 15. Bxd6 {[%emt 0:07:30]} cxd6 {[%emt 0:00:15]} 16. a3 {[%emt 0:03:11]} Nbd5 {[%emt 0:01:56]} 17. Nxd5 {[%emt 0:01:57]} Nxd5 {[%emt 0:00:14]} 18. Qd2 {[%emt 0:00:51]} Rc8 {[%emt 0:01:22]} 19. Kb1 {[%emt 0:00:27]} a6 {[%emt 0:00:26]} 20. Bd3 {[%emt 0:02:11]} b5 {[%emt 0:00:32]} 21. h4 {[%emt 0:03:02]} Qb6 {[%emt 0:01:30]} 22. Ne4 {[%emt 0:07:14]} b4 {[%emt 0:01:37]} 23. axb4 {[%emt 0:00:31]} Nxb4 {[%emt 0:00:35]} 24. c3 {[%emt 0:00:26]} Nxd3 {[%emt 0:01:51]} 25. Qxd3 {[%emt 0:00:02]} Bd5 {[%emt 0:00:25]} 26. Nd2 {[%emt 0:02:08]} Rb8 {[%emt 0:02:16]} 27. Qc2 {[%emt 0:00:34]} Rec8 {[%emt 0:01:01]} 28. Kc1 {[%emt 0:02:56]} Qa5 {[%emt 0:01:20]} 29. Rde1 {[%emt 0:02:58]} Qa2 {[%emt 0:06:00]} 30. Re3 {[%emt 0:03:37]} Rc7 {[%emt 0:02:19]} 31. Qb1 {[%emt 0:00:30]} Qa5 {[%emt 0:01:01]} 32. h5 {[%emt 0:02:37]} Qb6 {[%emt 0:01:13]} 33. h6 {[%emt 0:01:04]} g6 {[%emt 0:01:02]} 34. Rh4 {[%emt 0:01:52]} a5 {[%emt 0:00:59]} 35. Qc2 {[%emt 0:01:08]} a4 {[%emt 0:01:03]} 36. c4 {[%emt 0:02:26]} Rbc8 {[%emt 0:03:58]} 37. Rc3 {[%emt 0:00:17]} Qb4 {[%emt 0:01:06]} 38. b3 {[%emt 0:01:51]} axb3 {[%emt 0:02:44]} 39. Rxb3 {[%emt 0:01:39]} Rxc4 {[%emt 0:02:07]} 40. Rxb4 {[%emt 0:01:37]} Rxc2+ {[%emt 0:00:11]} 41. Kd1 {[%emt 0:00:01]} Ra2 {[%emt 0:00:48]} 42. g4 {[%emt 0:01:41]} Kf8 {[%emt 0:00:19]} 43. g5 {[%emt 0:00:33]} Ra1+ {[%emt 0:01:08]} 44. Ke2 {[%emt 0:00:20]} Ke7 {[%emt 0:01:35]} 45. Rb2 {[%emt 0:00:39]} Rg1 {[%emt 0:01:03]} 46. f4 {[%emt 0:00:40]} f6 {[%emt 0:02:40]} 47. gxf6+ {[%emt 0:00:14]} Kxf6 {[%emt 0:00:06]} 48. Rb6 {[%emt 0:00:01]} Rg2+ {[%emt 0:01:05]} 49. Kd3 {[%emt 0:00:07]} Ra8 {[%emt 0:01:15]} 50. Ne4+ {[%emt 0:00:36]} Ke7 {[%emt 0:02:35]} 51. Nc3 {[%emt 0:00:52]} Ra3 {[%emt 0:00:57]} 52. Rh3 {[%emt 0:00:13]} Rf2 {[%emt 0:01:28]} 53. Rb8 {[%emt 0:01:04]} Rxf4 {[%emt 0:01:59]} 54. Ke2 {[%emt 0:01:16]} Bc4+ {[%emt 0:01:32]} 55. Kd2 {[%emt 0:00:59]} Rf2+ {[%emt 0:01:04]} 56. Ke1 {[%emt 0:00:13]} Re2+ {[%emt 0:02:26]} 57. Nxe2 {[%emt 0:00:02]} Rxh3 {[%emt 0:00:06]} 58. Rb7+ {[%emt 0:00:02]} Kf6 {[%emt 0:01:07]} 59. Rxh7 {[%emt 0:12:35]} Re3 {[%emt 0:01:47]} 60. Rc7 {[%emt 0:00:00]} Rxe2+ {[%emt 0:00:29]} 61. Kd1 {[%emt 0:00:00]} Bb5 {[%emt 0:02:01]} 62. d5 {[%emt 0:00:00]} Rh2 {[%emt 0:00:19]} 63. h7 {[%emt 0:00:00]} exd5 {[%emt 0:00:22]} 0-1

[Event "1000GM Schev-G4 May 2024"]
[Site "Sunnyvale"]
[Date "2024.05.13"]
[Round "5.4"]
[White "Jaquez, Juan Manuel"]
[Black "Pullela, Sricharan"]
[Result "1-0"]
[ECO "C05"]
[WhiteElo "2208"]
[BlackElo "2125"]
[Annotator "ChessBase"]
[PlyCount "105"]
[EventDate "2024.05.10"]
[EventType "schev"]
[EventCountry "USA"]
[SourceTitle "playchess.com"]
[Source "ChessBase"]
[SourceQuality "1"]
[TimeControl "5400+30"]

1. e4 {[%emt 0:02:10]} e6 {[%emt 0:00:04]} 2. d4 {[%emt 0:00:49]} d5 {[%emt 0:00:03]} 3. Nd2 {[%emt 0:00:29]} Nf6 {[%emt 0:00:06]} 4. e5 {[%emt 0:00:07]} Nfd7 {[%emt 0:00:02]} 5. f4 {[%emt 0:01:33]} c5 {[%emt 0:00:05]} 6. c3 {[%emt 0:00:05]} Nc6 {[%emt 0:00:03]} 7. Ndf3 {[%emt 0:00:11]} a6 {[%emt 0:00:42]} 8. Bd3 {[%emt 0:00:32]} b5 {[%emt 0:00:32]} 9. Ne2 {[%emt 0:00:23]} Nb6 {[%emt 0:00:41]} 10. O-O {[%emt 0:00:28]} Bd7 {[%emt 0:01:02]} 11. Be3 {[%emt 0:04:48]} cxd4 {[%emt 0:02:30]} 12. Nexd4 {[%emt 0:05:06]} Nc4 {[%emt 0:00:33]} 13. Bxc4 {[%emt 0:05:14]} dxc4 {[%emt 0:02:56]} 14. Kh1 {[%emt 0:01:49]} Be7 {[%emt 0:00:36]} 15. Qe2 {[%emt 0:02:55]} O-O {[%emt 0:01:54]} 16. Qf2 {[%emt 0:02:54]} Qc7 {[%emt 0:02:01]} 17. Rfd1 {[%emt 0:03:22]} Nxd4 {[%emt 0:00:55]} 18. Nxd4 {[%emt 0:01:00]} Qb7 {[%emt 0:00:41]} 19. Rd2 {[%emt 0:02:00]} g6 {[%emt 0:01:55]} 20. Rad1 {[%emt 0:00:40]} Rfd8 {[%emt 0:05:01]} 21. h4 {[%emt 0:02:43]} Bc6 {[%emt 0:03:04]} 22. h5 {[%emt 0:04:33]} Be4 {[%emt 0:00:33]} 23. Qg3 {[%emt 0:01:58]} b4 {[%emt 0:01:21]} 24. f5 {[%emt 0:06:17]} Bxf5 {[%emt 0:07:48]} 25. Bg5 {[%emt 0:01:24]} bxc3 {[%emt 0:17:32]} 26. bxc3 {[%emt 0:00:29]} Bd3 {[%emt 0:03:06]} 27. Bxe7 {[%emt 0:01:27]} Qxe7 {[%emt 0:00:03]} 28. Nc6 {[%emt 0:00:16]} Qf8 {[%emt 0:01:51]} 29. Nxd8 {[%emt 0:00:33]} Rxd8 {[%emt 0:00:05]} 30. Qg5 {[%emt 0:04:03]} Rd5 {[%emt 0:03:01]} 31. Rf2 {[%emt 0:04:51]} Qd8 {[%emt 0:02:18]} 32. Qxd8+ {[%emt 0:00:32]} Rxd8 {[%emt 0:00:04]} 33. h6 {[%emt 0:02:10]} Rb8 {[%emt 0:00:26]} 34. Kh2 {[%emt 0:00:31]} Rb5 {[%emt 0:03:46]} 35. Re1 {[%emt 0:01:26]} a5 {[%emt 0:00:11]} 36. Re3 {[%emt 0:02:16]} a4 {[%emt 0:02:33]} 37. Ref3 {[%emt 0:00:17]} Rb7 {[%emt 0:00:06]} 38. Rf6 {[%emt 0:05:17]} a3 {[%emt 0:00:50]} 39. Kg3 {[%emt 0:00:20]} Bf5 {[%emt 0:12:02]} 40. Rd2 {[%emt 0:01:46]} Bd3 {[%emt 0:00:39]} 41. Rf4 {[%emt 0:02:50]} Kf8 {[%emt 0:00:34]} 42. Rd4 {[%emt 0:00:16]} Ke7 {[%emt 0:01:02]} 43. Rd6 {[%emt 0:00:39]} Rb2 {[%emt 0:01:35]} 44. Rf2 {[%emt 0:00:24]} Rb5 {[%emt 0:03:55]} 45. Ra6 {[%emt 0:00:15]} Rxe5 {[%emt 0:01:39]} 46. Ra7+ {[%emt 0:00:18]} Kd6 {[%emt 0:00:20]} 47. Rfxf7 {[%emt 0:00:22]} g5 {[%emt 0:01:42]} 48. Ra6+ {[%emt 0:00:45]} Kd5 {[%emt 0:00:10]} 49. Ra5+ {[%emt 0:00:46]} Ke4 {[%emt 0:00:04]} 50. Rxe5+ {[%emt 0:00:11]} Kxe5 {[%emt 0:00:04]} 51. Ra7 {[%emt 0:00:11]} Bf5 {[%emt 0:00:21]} 52. Kf3 {[%emt 0:00:27]} g4+ {[%emt 0:00:04]} 53. Ke3 {[%emt 0:00:12]} 1-0

[Event "1000GM Schev-G4 May 2024"]
[Site "Sunnyvale"]
[Date "2024.05.13"]
[Round "5.5"]
[White "Ramirez, Carlos"]
[Black "Bhatta, Rohit"]
[Result "1-0"]
[ECO "D35"]
[WhiteElo "2163"]
[BlackElo "1976"]
[Annotator "ChessBase"]
[PlyCount "103"]
[EventDate "2024.05.10"]
[EventType "schev"]
[EventCountry "USA"]
[SourceTitle "playchess.com"]
[Source "ChessBase"]
[SourceQuality "1"]
[TimeControl "5400+30"]

1. d4 {[%emt 0:24:58]} Nf6 {[%emt 0:00:06]} 2. c4 {[%emt 0:00:29]} e6 {[%emt 0:00:06]} 3. Nc3 {[%emt 0:00:11]} d5 {[%emt 0:00:04]} 4. cxd5 {[%emt 0:00:05]} exd5 {[%emt 0:00:05]} 5. Bg5 {[%emt 0:00:07]} c6 {[%emt 0:00:12]} 6. e3 {[%emt 0:00:07]} Bf5 {[%emt 0:00:06]} 7. g4 {[%emt 0:02:17]} Bg6 {[%emt 0:13:05]} 8. Bd3 {[%emt 0:27:19]} Bxd3 {[%emt 0:02:54]} 9. Qxd3 {[%emt 0:00:04]} Nbd7 {[%emt 0:00:39]} 10. f3 {[%emt 0:00:38]} Be7 {[%emt 0:16:28]} 11. O-O-O {[%emt 0:00:37]} Qa5 {[%emt 0:03:13]} 12. Kb1 {[%emt 0:00:59]} O-O-O {[%emt 0:01:22]} 13. Nge2 {[%emt 0:00:18]} Kb8 {[%emt 0:02:49]} 14. Bf4+ {[%emt 0:01:28]} Ka8 {[%emt 0:02:13]} 15. Nc1 {[%emt 0:01:55]} Nb6 {[%emt 0:03:37]} 16. Bc7 {[%emt 0:02:19]} Rc8 {[%emt 0:00:35]} 17. Nb3 {[%emt 0:01:24]} Qb4 {[%emt 0:00:38]} 18. Bxb6 {[%emt 0:01:03]} axb6 {[%emt 0:08:53]} 19. g5 {[%emt 0:02:53]} Nd7 {[%emt 0:03:14]} 20. Qf5 {[%emt 0:04:29]} Qd6 {[%emt 0:01:12]} 21. e4 {[%emt 0:03:07]} Qe6 {[%emt 0:01:49]} 22. Qf4 {[%emt 0:02:07]} Qg6 {[%emt 0:07:57]} 23. h4 {[%emt 0:00:22]} dxe4 {[%emt 0:08:51]} 24. fxe4 {[%emt 0:00:14]} Bd6 {[%emt 0:02:54]} 25. Qf3 {[%emt 0:01:22]} Rhe8 {[%emt 0:01:20]} 26. Rdf1 {[%emt 0:04:50]} Re7 {[%emt 0:04:57]} 27. Rhg1 {[%emt 0:04:31]} Bb4 {[%emt 0:01:23]} 28. h5 {[%emt 0:01:17]} Qe6 {[%emt 0:00:59]} 29. Nd2 {[%emt 0:01:12]} Qd6 {[%emt 0:01:10]} 30. Qe3 {[%emt 0:02:08]} b5 {[%emt 0:07:49]} 31. Rg2 {[%emt 0:04:27]} Nb6 {[%emt 0:01:21]} 32. Rgf2 {[%emt 0:01:29]} Bxc3 {[%emt 0:01:10]} 33. Qxc3 {[%emt 0:00:11]} Na4 {[%emt 0:00:48]} 34. Qd3 {[%emt 0:01:16]} Rcc7 {[%emt 0:00:41]} 35. Rf3 {[%emt 0:01:00]} Rcd7 {[%emt 0:01:06]} 36. Nb3 {[%emt 0:00:19]} Qb4 {[%emt 0:00:52]} 37. Qe3 {[%emt 0:02:04]} Nb6 {[%emt 0:01:14]} 38. a3 {[%emt 0:00:43]} Qd6 {[%emt 0:00:17]} 39. Nc5 {[%emt 0:01:07]} Nc4 {[%emt 0:00:23]} 40. Qc3 {[%emt 0:00:24]} Rc7 {[%emt 0:00:55]} 41. b3 {[%emt 0:01:56]} Nxa3+ {[%emt 0:00:14]} 42. Kb2 {[%emt 0:00:05]} b6 {[%emt 0:01:03]} 43. e5 {[%emt 0:00:30]} Qd5 {[%emt 0:00:29]} 44. Na6 {[%emt 0:00:10]} Ra7 {[%emt 0:00:30]} 45. Nb4 {[%emt 0:00:01]} Nc4+ {[%emt 0:00:34]} 46. bxc4 {[%emt 0:00:16]} Qe4 {[%emt 0:00:23]} 47. cxb5 {[%emt 0:00:36]} c5 {[%emt 0:00:42]} 48. dxc5 {[%emt 0:00:45]} Ra4 {[%emt 0:00:23]} 49. Rf4 {[%emt 0:00:48]} Qe2+ {[%emt 0:00:27]} 50. Nc2 {[%emt 0:01:31]} Rea7 {[%emt 0:00:39]} 51. Rxa4 {[%emt 0:00:27]} Rxa4 {[%emt 0:01:09]} 52. Qf3+ {[%emt 0:00:07]} 1-0